[Event "51st La Roda Open 2025"]
[Site "La Roda"]
[Date "2025.04.16"]
[Round "3.16"]
[White "Gonzalez Manchon, Juan Miguel"]
[Black "Pomes Marcet, Joan"]
[Result "1/2-1/2"]
[Annotator "RC"]
[ECO "C07"]
[WhiteElo "1988"]
[BlackElo "2187"]
[PlyCount "120"]
[EventDate "2025.04.15"]
[EventType "swiss"]
[EventCountry "ESP"]
[SourceTitle "playchess.com"]
[Source "ChessBase"]
[SourceQuality "1"]
[TimeControl "5400+30"]

1. e4 {[%emt 0:04:05]} e6 {[%emt 0:00:07]} 2. d4 {[%emt 0:00:12]} d5 {[%emt 0:00:10]} 3. Nd2 {[%emt 0:00:08]} c5 {[%emt 0:00:19]} 4. exd5 {[%emt 0:00:04]} Qxd5 {[%emt 0:00:09]} 5. Ngf3 {[%emt 0:00:05]} cxd4 {[%emt 0:00:13]} 6. Bc4 {[%emt 0:00:07]} Qd6 {[%emt 0:00:16]} 7. O-O {[%emt 0:00:44]} Nf6 {[%emt 0:00:08]} 8. Nb3 {[%emt 0:00:08]} Nc6 {[%emt 0:00:10]} 9. Nbxd4 {[%emt 0:00:37]} Nxd4 {[%emt 0:00:09]} 10. Qxd4 {[%emt 0:00:35]} Qxd4 {[%emt 0:00:23]} 11. Nxd4 {[%emt 0:00:04]} a6 {[%emt 0:00:17]} 12. Be2 {[%emt 0:00:37]} e5 {[%emt 0:08:11]} 13. Nf3 {[%emt 0:00:05]} Bd6 {[%emt 0:01:20]} 14. Rd1 {[%emt 0:00:33]} Bc7 {[%emt 0:01:45]} 15. b4 {[%emt 0:01:14]} O-O {[%emt 0:03:06]} 16. Bb2 {[%emt 0:00:44]} Re8 {[%emt 0:02:26]} 17. c4 {[%emt 0:01:16]} e4 {[%emt 0:06:47]} 18. Nd4 {[%emt 0:25:00]} Be5 {[%emt 0:13:53]} 19. Rab1 {[%emt 0:01:17]} Bd7 {[%emt 0:01:37]} 20. Nb3 {[%emt 0:02:24]} Bg4 {[%emt 0:19:46]} 21. Bxg4 {[%emt 0:02:52]} Nxg4 {[%emt 0:00:15]} 22. h3 {[%emt 0:01:41]} Bxb2 {[%emt 0:01:00]} 23. hxg4 {[%emt 0:01:25]} Bc3 {[%emt 0:04:26]} 24. Nc5 {[%emt 0:10:48]} b5 {[%emt 0:12:18]} 25. Rb3 {[%emt 0:19:07]} Bf6 {[%emt 0:00:42]} 26. Rc1 {[%emt 0:06:31]} Bg5 {[%emt 0:01:29]} 27. Rcc3 {[%emt 0:09:20]} Bd2 {[%emt 0:01:45]} 28. Rc2 {[%emt 0:00:07]} e3 {[%emt 0:02:16]} 29. fxe3 {[%emt 0:00:13]} Bxe3+ {[%emt 0:00:26]} 30. Kf1 {[%emt 0:00:42]} Rad8 {[%emt 0:14:55]} 31. Rd3 {[%emt 0:02:27]} Bxc5 {[%emt 0:02:16]} 32. Rxd8 {[%emt 0:00:07]} Rxd8 {[%emt 0:00:02]} 33. bxc5 {[%emt 0:00:06]} b4 {[%emt 0:00:14]} 34. Ke2 {[%emt 0:05:34]} Kf8 {[%emt 0:00:16]} 35. Ke3 {[%emt 0:00:51]} Ke7 {[%emt 0:00:21]} 36. g5 {[%emt 0:01:04]} Ke6 {[%emt 0:00:33]} 37. Ke4 {[%emt 0:00:49]} f5+ {[%emt 0:00:44]} 38. gxf6 {[%emt 0:00:10]} gxf6 {[%emt 0:00:02]} 39. g4 {[%emt 0:00:13]} Rd7 {[%emt 0:01:18]} 40. Rh2 {[%emt 0:00:24]} Rg7 {[%emt 0:00:18]} 41. Kf4 {[%emt 0:01:56]} Rg5 {[%emt 0:01:29]} 42. Ke4 {[%emt 0:00:59]} Rxg4+ {[%emt 0:00:22]} 43. Kd3 {[%emt 0:00:10]} Rg3+ {[%emt 0:00:52]} 44. Kd4 {[%emt 0:00:18]} Rg4+ {[%emt 0:00:09]} 45. Kd3 {[%emt 0:00:10]} Rg7 {[%emt 0:00:20]} 46. Kd4 {[%emt 0:01:36]} Rd7+ {[%emt 0:00:21]} 47. Ke3 {[%emt 0:00:27]} a5 {[%emt 0:00:23]} 48. Rh5 {[%emt 0:01:58]} f5 {[%emt 0:01:13]} 49. c6 {[%emt 0:00:47]} Rc7 {[%emt 0:01:21]} 50. Kd4 {[%emt 0:00:06]} Rxc6 {[%emt 0:00:21]} 51. Rh6+ {[%emt 0:00:04]} Kd7 {[%emt 0:00:06]} 52. Rxh7+ {[%emt 0:00:05]} Kc8 {[%emt 0:02:45]} 53. Rf7 {[%emt 0:00:49]} a4 {[%emt 0:00:00]} 54. Rxf5 {[%emt 0:00:25]} b3 {[%emt 0:00:00]} 55. axb3 {[%emt 0:01:36]} axb3 {[%emt 0:00:00]} 56. Rb5 {[%emt 0:00:33]} Kc7 {[%emt 0:00:00]} 57. Rxb3 {[%emt 0:00:13]} Rd6+ {[%emt 0:00:00]} 58. Kc3 {[%emt 0:01:03]} Kc6 {[%emt 0:00:00]} 59. Rb5 {[%emt 0:00:30]} Rd1 {[%emt 0:00:13]} 60. Rh5 {[%emt 0:01:11]} Rc1+ {[%emt 0:00:08]} 1/2-1/2